[Event "French-ch U16-U18 2024"]
[Site "Agen"]
[Date "2024.04.21"]
[Round "9.6"]
[White "Breuil, Tristan"]
[Black "Dessyn, Timothee"]
[Result "1-0"]
[ECO "B38"]
[WhiteElo "2281"]
[BlackElo "2110"]
[Annotator "TA"]
[PlyCount "121"]
[EventDate "2024.04.14"]
[EventType "swiss"]
[EventCountry "FRA"]
[SourceTitle "playchess.com"]
[Source "ChessBase"]
[SourceQuality "1"]
[TimeControl "5400+30"]

{[%evp 19,121,27,38,40,38,33,31,36,58,35,36,31,40,47,68,22,27,12,11,17,29,34,35,28,29,40,58,57,85,85,114,55,194,176,150,80,206,80,80,80,80,47,119,47,47,47,47,47,47,47,72,72,129,112,77,84,178,159,256,263,280,272,398,385,322,312,371,398,460,406,511,394,406,0,502,338,320,338,412,415,477,325,1466,1275,1529,1150,5043,5933,29977,29978,29980,29981,29981,29982,29982,29983,29949,12802,29963,29964,6033,5933,5933,5414]} 1. e4 {[%emt 0:00:35] Havasi,Gergo} c5 {[%emt 0:00:06]} 2. Nf3 {[%emt 0:00:09]} g6 {[%emt 0:00:04]} 3. d4 {[%emt 0:00:09]} cxd4 {[%emt 0:00:05]} 4. Nxd4 {[%emt 0:00:10]} Nc6 {[%emt 0:00:07]} 5. c4 {[%emt 0:00:15]} Nf6 {[%emt 0:00:06]} 6. Nc3 {[%emt 0:00:08]} d6 {[%emt 0:00:08]} 7. f3 {[%emt 0:00:19]} Bg7 {[%emt 0:00:05]} 8. Be3 {[%emt 0:00:57]} O-O {[%emt 0:00:07]} 9. Be2 {[%emt 0:00:13]} Nh5 {[%emt 0:00:05] B38: Sicilian: Maroczy Bind with 5...Bg7 and 7...0-0.} 10. g3 {[%emt 0:23:53]} Nxd4 {[%emt 0:00:46]} 11. Bxd4 {[%emt 0:00:16]} Be6 {[%emt 0:00:06]} 12. O-O {[%emt 0:08:56]} Rc8 {[%emt 0:14:39]} 13. b3 {[%emt 0:01:25]} (13. Bxa7 b6 14. Nb5 Bxb2 $15 (14... Bxc4 15. Bxc4 Rxc4 16. a4 $11)) 13... Nf6 {[%emt 0:11:26]} 14. f4 {[%emt 0:14:32]} (14. Bxa7 b6 15. Nb5 Ra8 $15) 14... Bh3 $146 {[%emt 0:00:29]} ({Predecessor:} 14... Qa5 15. f5 Bd7 16. a3 e6 17. b4 Qd8 18. fxg6 fxg6 19. e5 dxe5 20. Bxe5 Bc6 {1-0 So,W (2788)-Mamedov,R (2658) Gashimov Memorial 2nd 2015 (4)}) 15. Rf2 {[%emt 0:17:04]} h5 {[%emt 0:03:33]} 16. Qd3 {[%emt 0:03:17]} Qa5 {[%emt 0:19:19]} 17. Nd5 {[%emt 0:02:50]} (17. f5 $14) 17... Nxd5 $11 {[%emt 0:07:14]} 18. Bxg7 {[%emt 0:01:07]} Kxg7 {[%emt 0:00:54]} 19. exd5 {[%emt 0:00:01]} a6 {[%emt 0:08:02]} 20. Qd4+ {[%emt 0:09:32]} Kg8 {[%emt 0:04:36]} 21. Bd3 {[%emt 0:00:59]} Qc5 {[%emt 0:01:19]} 22. Qxc5 {[%emt 0:01:06]} Rxc5 {[%emt 0:02:11]} 23. f5 {[%emt 0:01:13]} g5 {[%emt 0:06:53]} 24. Re1 {[%emt 0:02:20]} Re8 {[%emt 0:00:27]} 25. Be2 {[%emt 0:01:34]} (25. g4 $1 $16) 25... g4 {[%emt 0:04:49]} (25... b5 $14) 26. Bd3 $18 {[%emt 0:00:18]} f6 {[%emt 0:02:01]} 27. a4 {[%emt 0:02:02]} (27. b4 $142 Rc7 28. c5) 27... Kf7 {[%emt 0:01:24]} (27... a5 $16) 28. Rc2 {[%emt 0:01:58]} (28. b4 $1 $18 {[%cal Rb4c5]} Rc7 29. a5) 28... a5 $16 {[%emt 0:00:38]} 29. Rb2 {[%emt 0:00:51]} Ra8 {[%emt 0:02:18]} 30. b4 {[%emt 0:00:41]} Rc7 {[%emt 0:00:59] [#]} (30... axb4 $14 31. Rxb4 Ra7) 31. Kf2 {[%emt 0:00:35]} ({Better is} 31. c5 $1 $16 {[%cal Rc5c6]}) 31... axb4 $14 {[%emt 0:01:08]} 32. Rxb4 {[%emt 0:00:01]} Kg7 {[%emt 0:00:35]} 33. Reb1 {[%emt 0:00:52]} Ra7 {[%emt 0:01:02]} 34. R1b2 {[%emt 0:01:17]} Kh6 {[%emt 0:01:47]} 35. Ke3 {[%emt 0:00:54]} Kg5 {[%emt 0:00:41]} (35... Kg7 $142) 36. Kd4 {[%emt 0:00:52]} Kh6 {[%emt 0:01:02]} 37. Ra2 {[%emt 0:01:30]} Kg7 {[%emt 0:00:34]} (37... h4 $16) 38. Rb5 $18 {[%emt 0:00:47]} Kf7 {[%emt 0:00:31] [#]} (38... Ra8 $16 {was worth a try.} 39. c5 dxc5+ 40. Rxc5 Rd7) 39. c5 $1 $18 {[%emt 0:02:29]} dxc5+ {[%emt 0:00:29]} 40. Rxc5 {[%emt 0:00:01]} Rd7 {[%emt 0:01:53]} (40... b6 $142 41. Rxc7 (41. Rc6 Rcb7 $16) 41... Rxc7) 41. Bb5 $18 {[%emt 0:00:12]} b6 {[%emt 0:00:01]} 42. Rc6 {[%emt 0:01:22]} Rdb7 {[%emt 0:00:01]} 43. Rac2 {[%emt 0:00:14]} Ra8 {[%emt 0:01:05]} 44. Rc8 {[%emt 0:00:36]} Rab8 {[%emt 0:01:02]} 45. Be8+ {[%emt 0:01:02]} Kg7 {[%emt 0:00:17]} 46. Bb5 {[%emt 0:00:01]} (46. Bxh5 Kh6 47. Be8 Rxc8 48. Rxc8 Bg2 $18) 46... Kf7 $1 {[%emt 0:00:08]} 47. Ba6 {[%emt 0:00:25]} Rxc8 {[%emt 0:00:51]} 48. Rxc8 {[%emt 0:00:02]} Rd7 {[%emt 0:00:01]} 49. Bb5 {[%emt 0:00:25]} Rd6 {[%emt 0:03:09]} 50. Bc6 {[%emt 0:00:13]} h4 $2 {[%emt 0:01:50]} (50... Bg2 51. Ra8 Bf3) 51. Rb8 $18 {[%emt 0:00:15]} hxg3 {[%emt 0:00:26]} 52. hxg3 {[%emt 0:00:01]} (52. Rxb6 $2 {is the wrong capture.} gxh2 53. Rb1 g3 $19) 52... Bg2 {[%emt 0:00:03]} 53. Rxb6 {[%emt 0:00:31]} Rd8 {[%emt 0:01:02]} 54. a5 {[%emt 0:00:17]} Bf1 {[%emt 0:00:13]} 55. a6 {[%emt 0:00:21]} Bxa6 {[%emt 0:00:05]} 56. Rxa6 {[%emt 0:00:02]} Rb8 {[%emt 0:00:06]} 57. Ra7 {[%emt 0:01:06]} Rb1 {[%emt 0:00:40]} 58. Bd7 {[%emt 0:01:20]} Rg1 {[%emt 0:00:53]} 59. Be6+ {[%emt 0:00:16]} Kf8 {[%emt 0:00:04]} 60. Ra8+ {[%emt 0:00:10]} Kg7 {[%emt 0:00:05]} 61. Rg8+ {[%emt 0:00:15]} 1-0

[Event "French-ch U16-U18 2024"]
[Site "Agen"]
[Date "2024.04.21"]
[Round "9.7"]
[White "Ernst, Luca"]
[Black "Kuhn, Clement"]
[Result "0-1"]
[ECO "B06"]
[WhiteElo "2133"]
[BlackElo "2349"]
[Annotator "TA"]
[PlyCount "176"]
[EventDate "2024.04.14"]
[EventType "swiss"]
[EventCountry "FRA"]
[SourceTitle "playchess.com"]
[Source "ChessBase"]
[SourceQuality "1"]
[TimeControl "5400+30"]

{[%evp 108,176,-79,-79,-79,-79,-79,-79,-79,-79,-79,-79,-79,-79,-79,-79,-79,-79,-79,-79,-16,-79,-79,-79,0,-79,-79,-155,-16,-155,-155,-155,-155,-155,-155,-155,-155,-155,-155,-155,-155,-155,-155,-155,-155,-155,-155,-155,-155,-155,0,-155,-155,-155,-155,-155,-155,-155,-155,-155,-155,-210,-210,-210,-210,-210,-210,-210,-210,-216,-216]} 1. e4 {[%emt 0:00:01]} g6 {[%emt 0:00:21]} 2. d4 {[%emt 0:06:12]} Bg7 {[%emt 0:00:22]} 3. Nf3 {[%emt 0:00:56]} d6 {[%emt 0:00:08]} 4. Bd3 {[%emt 0:02:22]} Bg4 {[%emt 0:11:23]} 5. c3 {[%emt 0:01:58]} e5 {[%emt 0:04:54]} 6. dxe5 {[%emt 0:07:36] B06: Modern Defence.} Bxe5 {[%emt 0:09:36]} 7. Qb3 $146 {[%emt 0:10:27]} ({Predecessor:} 7. O-O Bg7 8. Nbd2 Ne7 9. Re1 O-O 10. Nf1 Nbc6 11. h3 Bxf3 12. Qxf3 Ne5 13. Qd1 Nxd3 14. Qxd3 {0-1 Chen,Q (1776)-Sulzbacher,M (2018) AUT-ch Vor4 Internet blitz 2020 (1)}) 7... Nd7 {[%emt 0:12:02]} 8. Nxe5 {[%emt 0:06:18]} Nxe5 {[%emt 0:00:20]} 9. O-O {[%emt 0:02:04]} Nxd3 {[%emt 0:03:53]} 10. Qb5+ {[%emt 0:00:01]} Qd7 {[%emt 0:00:06]} 11. Qxd3 {[%emt 0:00:06]} O-O-O {[%emt 0:00:18]} 12. Qd4 {[%emt 0:06:07]} Ne7 {[%emt 0:14:41]} 13. Qxa7 {[%emt 0:02:02]} Qb5 {[%emt 0:06:21]} 14. Na3 {[%emt 0:02:52]} Qa6 {[%emt 0:01:53]} 15. Qxa6 {[%emt 0:03:59]} bxa6 {[%emt 0:00:01]} 16. f3 {[%emt 0:00:25]} Be6 {[%emt 0:00:04]} 17. Bg5 {[%emt 0:00:08]} Rd7 {[%emt 0:32:37]} 18. Nc2 {[%emt 0:03:00]} Re8 {[%emt 0:00:00]} 19. Nd4 {[%emt 0:01:32]} c5 {[%emt 0:00:00]} 20. Nxe6 {[%emt 0:03:47]} fxe6 {[%emt 0:00:00]} 21. Rad1 {[%emt 0:03:48]} Nc6 {[%emt 0:00:00]} 22. Rfe1 {[%emt 0:01:19]} Rf8 {[%emt 0:00:00]} 23. Bh6 {[%emt 0:02:13]} Rfd8 {[%emt 0:00:00]} 24. Bg5 {[%emt 0:00:16]} Rf8 {[%emt 0:00:00]} 25. Be3 {[%emt 0:00:12]} Kc7 {[%emt 0:00:00]} 26. Re2 {[%emt 0:03:10]} a5 {[%emt 0:00:00]} 27. Red2 {[%emt 0:01:20]} Ne5 {[%emt 0:00:00]} 28. b3 {[%emt 0:01:46]} Kc6 {[%emt 0:00:00]} 29. Bh6 {[%emt 0:02:18]} Rb8 {[%emt 0:00:00]} 30. Bf4 {[%emt 0:00:43]} Nf7 {[%emt 0:00:00]} 31. Kf2 {[%emt 0:02:19]} a4 {[%emt 0:00:00]} 32. Rb1 {[%emt 0:00:51]} g5 {[%emt 0:00:00]} 33. Bg3 {[%emt 0:01:23]} Rdb7 {[%emt 0:00:00]} 34. Rdb2 {[%emt 0:00:33]} h5 {[%emt 0:00:00]} 35. h3 {[%emt 0:01:09]} h4 {[%emt 0:00:00]} 36. Bh2 {[%emt 0:00:01]} axb3 {[%emt 0:00:00]} 37. axb3 {[%emt 0:00:01]} e5 {[%emt 0:00:00]} 38. Ke2 {[%emt 0:02:29]} Nd8 {[%emt 0:00:00]} 39. Kd3 {[%emt 0:00:24]} Rb5 {[%emt 0:00:00]} 40. Kc4 {[%emt 0:01:38]} Nb7 {[%emt 0:01:01]} 41. b4 {[%emt 0:02:57]} Ra8 {[%emt 0:04:25]} 42. Bg1 {[%emt 0:05:27]} Ra3 {[%emt 0:00:09]} 43. bxc5 {[%emt 0:06:34]} dxc5 {[%emt 0:02:09]} 44. Rxb5 {[%emt 0:01:46]} Nd6+ {[%emt 0:00:01]} 45. Kd3 {[%emt 0:00:00]} c4+ {[%emt 0:00:29]} 46. Kd2 {[%emt 0:00:46]} Nxb5 {[%emt 0:00:01]} 47. Rc1 {[%emt 0:01:25]} Ra2+ {[%emt 0:00:01]} 48. Rc2 {[%emt 0:00:01]} Ra1 {[%emt 0:00:00]} 49. Be3 {[%emt 0:02:46]} Na3 {[%emt 0:00:34]} 50. Rb2 {[%emt 0:01:13]} Nb1+ {[%emt 0:00:07]} 51. Rxb1 {[%emt 0:01:47]} Rxb1 {[%emt 0:00:04]} 52. Bxg5 {[%emt 0:00:03]} Rb2+ {[%emt 0:00:04]} 53. Ke3 {[%emt 0:00:24]} Rc2 {[%emt 0:08:55]} 54. Bxh4 {[%emt 0:00:12]} Rxc3+ {[%emt 0:00:00]} 55. Kd2 {[%emt 0:00:22]} Ra3 {[%emt 0:00:00]} 56. Bf6 {[%emt 0:00:19]} Kd6 {[%emt 0:00:00]} 57. h4 {[%emt 0:01:00]} Ra2+ {[%emt 0:00:00]} 58. Kc3 {[%emt 0:00:01]} Rxg2 {[%emt 0:00:00]} 59. Kxc4 {[%emt 0:00:32]} Rg3 {[%emt 0:00:00]} 60. Bg5 {[%emt 0:00:29]} Rxf3 {[%emt 0:00:00]} 61. h5 {[%emt 0:01:17]} Rg3 {[%emt 0:00:00]} 62. Bd2 {[%emt 0:00:18]} Ke6 {[%emt 0:00:00]} 63. h6 {[%emt 0:00:08]} Kf6 {[%emt 0:00:00]} ({Black should play} 63... Rg1 $17) 64. Bc1 {[%emt 0:00:31]} (64. Bb4 $1 $11) 64... Rg8 {[%emt 0:00:00]} 65. Kd3 {[%emt 0:01:15]} Rg3+ {[%emt 0:00:00]} 66. Kc4 {[%emt 0:00:37]} Rg1 {[%emt 0:00:32]} 67. Ba3 {[%emt 0:01:23] [#]} (67. Be3 $142 Rd1 68. Kc3) 67... Rd1 {[%emt 0:00:51]} (67... Re1 $1 $17 {[%cal Re1e3]} 68. Kd3 Rd1+ 69. Kc3 Kf7) 68. Kc5 {[%emt 0:00:38]} (68. Bf8 $1 $11) 68... Rd4 {[%emt 0:00:42]} 69. Bb2 {[%emt 0:00:22]} Rd8 {[%emt 0:00:56]} (69... Rxe4 70. h7 Rh4 71. Kd5 $11) 70. Ba3 {[%emt 0:00:37]} Ke6 {[%emt 0:00:38]} 71. Bb4 {[%emt 0:00:23]} Rd4 {[%emt 0:00:59]} 72. Be1 {[%emt 0:00:01]} Rd1 {[%emt 0:00:32]} (72... Rxe4 73. h7 Rxe1 74. h8=Q $18) 73. Bh4 {[%emt 0:00:53]} Rc1+ {[%emt 0:00:05]} 74. Kb5 {[%emt 0:00:10]} Rg1 {[%emt 0:01:48]} 75. Bf2 {[%emt 0:00:32]} Rg2 {[%emt 0:01:43]} 76. Be3 {[%emt 0:00:35]} Rc2 {[%emt 0:00:24]} 77. Bg5 {[%emt 0:00:33]} Re2 {[%emt 0:00:16]} 78. Kc5 {[%emt 0:00:21]} Rc2+ {[%emt 0:00:05]} (78... Rxe4 79. h7 Rg4 80. Bh6 $18 (80. h8=N {leads to mate.} Rxg5 81. Kc4 Rg8)) 79. Kb5 {[%emt 0:00:01]} Kf7 {[%emt 0:00:33]} 80. h7 {[%emt 0:01:05]} Rc8 {[%emt 0:00:51]} 81. h8=Q {[%emt 0:00:47]} Rxh8 {[%emt 0:00:05]} 82. Kc4 {[%emt 0:00:06]} Ke6 {[%emt 0:00:19]} 83. Kd3 {[%emt 0:00:11]} Rh3+ {[%emt 0:00:09]} 84. Be3 {[%emt 0:00:01]} (84. Kc2 $17 {was called for.}) 84... Kd6 $19 {[%emt 0:00:16]} 85. Ke2 {[%emt 0:00:11]} Kc6 {[%emt 0:00:24]} 86. Ba7 {[%emt 0:00:46]} Rb3 {[%emt 0:00:25]} 87. Kf2 {[%emt 0:00:25] [#]} Rb7 $1 {[%emt 0:00:26]} 88. Be3 {[%emt 0:00:03]} Kb5 {[%emt 0:00:08]} 0-1

[Event "French-ch U16-U18 2024"]
[Site "Agen"]
[Date "2024.04.21"]
[Round "9.8"]
[White "Eugene, Nathael"]
[Black "Boumrar, Ayrad"]
[Result "0-1"]
[ECO "B15"]
[WhiteElo "2137"]
[BlackElo "2191"]
[Annotator "TA"]
[PlyCount "112"]
[EventDate "2024.04.14"]
[EventType "swiss"]
[EventCountry "FRA"]
[SourceTitle "playchess.com"]
[Source "ChessBase"]
[SourceQuality "1"]
[TimeControl "5400+30"]

{[%evp 26,112,26,25,44,51,42,21,40,33,19,11,113,0,0,-28,0,-134,0,-179,-175,-196,-191,-193,-196,-194,-185,-317,-329,-327,-205,-219,-223,-303,-258,-377,-366,-351,-281,-391,-385,-396,-398,-380,-393,-391,-389,-406,-420,-481,-447,-434,-375,-363,-365,-383,-388,-435,-439,-461,-419,-441,-435,-414,-400,-480,-489,-531,-526,-631,-617,-607,-573,-643,-629,-623,-583,-691,-678,-1007,-914,-5510,-1119,-29982,-29983,-29983,-29984,-29985,-29986]} 1. e4 {[%emt 0:02:10]} c6 {[%emt 0:00:12]} 2. Nc3 {[%emt 0:00:16]} d5 {[%emt 0:00:05]} 3. d4 {[%emt 0:00:03]} dxe4 {[%emt 0:00:04]} 4. Nxe4 {[%emt 0:00:03]} Nf6 {[%emt 0:00:07]} 5. Nxf6+ {[%emt 0:00:23]} exf6 {[%emt 0:00:06]} 6. c3 {[%emt 0:00:34]} Bd6 {[%emt 0:00:06]} 7. Bd3 {[%emt 0:00:04]} O-O {[%emt 0:00:05]} 8. Qc2 {[%emt 0:00:02]} Re8+ {[%emt 0:00:04]} 9. Ne2 {[%emt 0:00:06]} h5 {[%emt 0:00:02]} 10. O-O {[%emt 0:03:19]} h4 {[%emt 0:00:35]} 11. h3 {[%emt 0:00:02]} Nd7 {[%emt 0:00:48]} 12. Bd2 {[%emt 0:00:01]} Nf8 {[%emt 0:00:37]} 13. Rae1 {[%emt 0:00:01]} Bc7 {[%emt 0:00:58]} 14. f4 {[%emt 0:03:43]} g6 {[%emt 0:01:13]} 15. f5 {[%emt 0:00:11]} g5 {[%emt 0:00:06]} 16. Qd1 {[%emt 0:00:11]} Qd6 {[%emt 0:15:59]} (16... b5 {simplifies} 17. Nc1 Rxe1 18. Rxe1 Bb7) 17. Nf4 $1 {[%emt 0:00:10]} Bd7 $1 {[%emt 0:08:01]} 18. Qh5 {[%emt 0:06:35]} b5 {[%emt 0:13:07] [#]} (18... gxf4 $2 19. Bc4 $18 (19. Bxf4 Qxf4 20. Rxf4 Rxe1+ 21. Rf1 Rae8 $11) (19. Bxf4 Qxf4 20. Rxf4 Rxe1+ 21. Rf1 Rxf1+ 22. Kxf1 Re8 $15)) (18... Rxe1 $11 19. Rxe1 b5 (19... gxf4 $2 20. Bc4 $18)) 19. Bc2 {[%emt 0:37:56]} ({White should try} 19. Qh6 $1 $16 Nh7 20. Nh5) 19... c5 $11 {[%emt 0:01:43]} 20. Rd1 {[%emt 0:00:57]} c4 {[%emt 0:02:28]} (20... Nh7 $5) 21. g3 {[%emt 0:07:34]} (21. Qh6 $11 {remains equal.} Bc6 22. d5 Bxd5 23. Nxd5 Qh2+ 24. Kf2 Qg3+ 25. Kg1 Qh2+ 26. Kf2 Qg3+ 27. Kg1 Qh2+) 21... Bc6 {[%emt 0:03:59]} (21... gxf4 $2 22. Rxf4 Ne6 (22... hxg3 $2 23. Rg4+ $18) 23. fxe6 Bxe6 24. Re1 $18 (24. Rxf6 $2 Qxg3+ 25. Kh1 Qh2#) (24. Qxh4 Kf8 $18)) ({Better is} 21... hxg3 $17 {[%cal Od7c6] Hoping for ...Bc6!} 22. Qh6 g2 (22... gxf4 $2 23. Rxf4 $18)) 22. gxh4 $2 {[%emt 0:05:14]} (22. Qh6 $1 $11 gxf4 23. Rxf4) 22... gxf4 $19 {[%emt 0:09:08]} 23. Bxf4 {[%emt 0:00:30] [#]} Qd5 $1 {[%emt 0:00:45]} 24. Qg4+ {[%emt 0:00:19]} (24. Bxc7 $2 Qg2#) 24... Kh8 {[%emt 0:00:34]} 25. Bxc7 {[%emt 0:14:55]} Nh7 {[%emt 0:00:33]} 26. Kf2 {[%emt 0:00:16]} (26. Kh2 {keeps fighting.} Rg8 27. Be4 Qxe4 28. Qxe4 Bxe4 29. Bg3) 26... Rg8 $19 {[%emt 0:00:43]} 27. Be4 {[%emt 0:00:01]} Qxe4 {[%emt 0:00:54]} 28. Qxe4 {[%emt 0:00:03]} Bxe4 {[%emt 0:00:06]} 29. d5 {[%emt 0:00:16]} Rae8 {[%emt 0:06:04]} 30. d6 {[%emt 0:00:14]} (30. Rg1 {might work better.} Rxg1 (30... Bxf5 $2 31. Rge1 $19) 31. Rxg1) 30... Rg2+ $19 {[%emt 0:02:24]} (30... Bxf5 31. d7 Rd8 32. Bxd8 Rxd8 33. Rfe1 $17) 31. Ke3 {[%emt 0:00:06]} Bd3+ {[%emt 0:00:35]} 32. Kd4 {[%emt 0:02:41]} Bxf1 {[%emt 0:00:45]} ({Stronger than} 32... Rxb2 33. d7 Rf8 34. Rfe1 (34. d8=B $2 {loses.} Bxf1 35. Rxf1 Rxa2 $19) (34. d8=Q $2 {perishes.} Rxd8+ 35. Bxd8 Bxf1 $19) 34... Bxf5 (34... Be2 $2 35. Kc5 $18) 35. d8=Q (35. d8=R Rxd8+ 36. Bxd8 Bxh3 $16) 35... Rxd8+ 36. Bxd8 $16) 33. d7 {[%emt 0:00:00]} Reg8 {[%emt 0:00:13]} 34. d8=Q {[%emt 0:00:03]} Rxd8+ {[%emt 0:00:07]} 35. Bxd8 {[%emt 0:00:10]} Bd3 {[%emt 0:00:09]} 36. b4 {[%emt 0:01:00]} Rxa2 {[%emt 0:01:02]} 37. h5 {[%emt 0:00:51]} Be2 {[%emt 0:01:50]} 38. Re1 {[%emt 0:00:01]} Rd2+ {[%emt 0:00:12]} 39. Kc5 {[%emt 0:00:02]} a6 {[%emt 0:09:04]} 40. h4 {[%emt 0:02:00]} Bxh5 {[%emt 0:00:41]} 41. Re8+ {[%emt 0:00:11]} Kg7 {[%emt 0:00:04]} 42. Kb6 {[%emt 0:00:44]} Rd6+ {[%emt 0:02:43]} 43. Ka5 {[%emt 0:00:06]} Bd1 {[%emt 0:00:47]} 44. Bb6 {[%emt 0:00:09]} Rd5 {[%emt 0:01:11]} 45. Kxa6 {[%emt 0:00:19]} Rxf5 {[%emt 0:00:08]} 46. Bc5 {[%emt 0:00:06]} Ba4 {[%emt 0:00:04]} 47. Kb6 {[%emt 0:00:14]} Re5 {[%emt 0:00:29]} 48. Rd8 {[%emt 0:00:17]} Re6+ {[%emt 0:00:11]} 49. Kc7 {[%emt 0:00:02]} f5 {[%emt 0:00:19]} 50. Bd4+ {[%emt 0:00:08]} f6 {[%emt 0:00:51]} 51. Kd7 {[%emt 0:00:02]} Re4 {[%emt 0:00:38]} 52. h5 {[%emt 0:00:02]} f4 {[%emt 0:00:33]} 53. Kd6 {[%emt 0:00:06]} f3 {[%emt 0:00:23]} 54. Kd5 {[%emt 0:00:07]} Rxd4+ {[%emt 0:00:15]} 55. Kxd4 {[%emt 0:00:16]} f2 {[%emt 0:00:05]} 56. Rd7+ {[%emt 0:00:05]} Kh6 {[%emt 0:00:05]} 0-1

[Event "French-ch U16-U18 2024"]
[Site "Agen"]
[Date "2024.04.21"]
[Round "9.9"]
[White "Flagiello, Francesco"]
[Black "Trevisiol, Antoine"]
[Result "0-1"]
[ECO "C78"]
[WhiteElo "1952"]
[BlackElo "2235"]
[Annotator "TA"]
[PlyCount "66"]
[EventDate "2024.04.14"]
[EventType "swiss"]
[EventCountry "FRA"]
[SourceTitle "playchess.com"]
[Source "ChessBase"]
[SourceQuality "1"]
[TimeControl "5400+30"]

{[%evp 21,65,0,0,0,0,-12,0,-41,-54,-89,-33,-31,-27,-54,-42,-70,-74,-89,-90,-193,-181,-202,-202,-201,-173,-246,-235,-421,-369,-390,-377,-502,-494,-719,-677,-977,-942,-1006,-994,-916,-866,-29985,-29986,-29986,-29987,-29999]} 1. e4 {[%emt 0:00:02]} e5 {[%emt 0:00:13]} 2. Nf3 {[%emt 0:00:07]} Nc6 {[%emt 0:00:09]} 3. Bb5 {[%emt 0:00:11][%cal Bf1b5,Bb5a4,Ba4b3][%mdl 32]} a6 {[%emt 0:00:17]} 4. Ba4 {[%emt 0:00:08]} Nf6 {[%emt 0:00:17]} 5. O-O {[%emt 0:00:49]} b5 {[%emt 0:00:16]} 6. Bb3 {[%emt 0:00:21]} Bc5 {[%emt 0:00:20]} 7. c3 {[%emt 0:02:23]} d6 {[%emt 0:00:28]} 8. d4 {[%emt 0:02:39]} Bb6 {[%emt 0:00:14]} 9. h3 {[%emt 0:05:30]} O-O {[%emt 0:00:52]} 10. Re1 {[%emt 0:00:47]} h6 {[%emt 0:08:15]} 11. a4 {[%emt 0:06:04]} Bb7 {[%emt 0:04:26]} 12. d5 {[%emt 0:11:58]} Ne7 {[%emt 0:05:23]} 13. Nbd2 {[%emt 0:06:09]} Nd7 {[%emt 0:11:16]} 14. Nf1 {[%emt 0:07:53] The position is equal.} f5 {[%emt 0:04:37]} 15. Ng3 {[%emt 0:05:27] [#]} f4 {[%emt 0:02:04]} ({Black should try} 15... bxa4 $1 $17 16. Bc2 fxe4 17. Nxe4 Bxd5 18. Rxa4 Qe8) 16. Nf1 $15 {[%emt 0:01:13]} Kh8 {[%emt 0:09:59]} 17. Qe2 {[%emt 0:06:20]} g5 {[%emt 0:04:54]} 18. axb5 {[%emt 0:04:09]} axb5 {[%emt 0:02:00] White is on the road to losing.} 19. Bd2 {[%emt 0:05:41]} Nf6 {[%emt 0:02:50] ...g4 would now be deadly.} 20. N3h2 {[%emt 0:09:46]} (20. Rxa8 $17 {is a better defense.} Qxa8 21. N1h2) 20... Rxa1 {[%emt 0:01:32]} 21. Rxa1 {[%emt 0:00:10][%cal Oh2g4]} Qd7 {[%emt 0:00:34]} 22. Ng4 {[%emt 0:02:38] [#]} Neg8 {[%emt 0:01:42]} 23. Nxf6 {[%emt 0:06:56]} (23. c4 {keeps fighting.}) 23... Nxf6 $19 {[%emt 0:01:00]} 24. Kh2 $2 {[%emt 0:07:03]} (24. Kh1 {was worth a try.}) 24... Bc8 {[%emt 0:04:42]} 25. f3 {[%emt 0:01:40]} h5 {[%emt 0:02:16] ...g4 is the strong threat.} 26. Be1 {[%emt 0:01:28]} g4 {[%emt 0:02:12]} 27. fxg4 {[%emt 0:00:54]} (27. Kh1 $142 gxh3 28. Bh4 hxg2+ 29. Qxg2) 27... hxg4 {[%emt 0:01:14] Threatens to win with ...Qh7.} 28. Bh4 {[%emt 0:00:26]} gxh3 {[%emt 0:04:56]} 29. Bxf6+ {[%emt 0:00:15]} Rxf6 {[%emt 0:00:13]} 30. Qh5+ {[%emt 0:00:35]} Kg7 {[%emt 0:00:10]} 31. gxh3 {[%emt 0:01:32]} Rh6 {[%emt 0:00:47] Black mates.} 32. Qg5+ {[%emt 0:00:55]} Kh7 {[%emt 0:00:16][%csl Gc8,Gh6][%cal Rd7h3]} 33. h4 {[%emt 0:02:21]} Qh3# {[%emt 0:00:11] Weighted Error Value: White=0.92/Black=0.07 (flawless) .  Mistake:       	White=4     	Black=1      Inaccurate:     	White=6     	---        OK:         	White=3     	Black=4      Best:        	---       	Black=3} 0-1